Cogmind - Beta 14 @@@ ROGUE MODE // 2024.08.29 @ 09:09:38 Player: MOPO3 Result: Destroyed by G-47 Trooper with Particle Gun Performance ------------- Evolutions (0) 0 Regions Visited (2) 400 Robots Destroyed (12) 60 Value Destroyed (242) 242 Prototype IDs (1) 20 Alien Tech Used (0) 0 Bonus (0) 0 TOTAL SCORE: 722 Bonus ------- None Cogmind --------- Core Integrity 0/250 Matter 288/300 Energy 250/250 System Corruption 0% Temperature Cool (9) Movement Walking (120) Location -10/Mines Parts ------- > --- POWER (1) -------- Ion Engine > --- PROPULSION (2) --- Aluminum Leg Aluminum Leg > --- UTILITY (2) ------ Small Storage Unit Experimental Sensor Array > --- WEAPON (2) ------- Assault Rifle Light Assault Rifle > --- INVENTORY (8) ---- Ion Engine Aluminum Leg Aluminum Leg Medium Matter Pod (100) Structural Scanner Seismic Detector ECM Suite Hammer Peak State ------------ > --- POWER ------------ Light Nuclear Core > --- PROPULSION ------- Light Treads > --- UTILITY ---------- Small Storage Unit Experimental Sensor Array > --- WEAPON ----------- Assault Rifle Light Assault Rifle > --- INVENTORY -------- Ion Engine Ion Engine Aluminum Leg Medium Matter Pod Improved Terrain Scanner Seismic Detector ECM Suite Hammer [Rating: 17] Favorites ----------- Power Light Nuclear Core Engine Ion Engine Power Core Light Nuclear Core Propulsion Light Treads Treads Light Treads Leg Aluminum Leg Utility Small Storage Unit Device Improved Terrain Scanner Storage Small Storage Unit Weapon Assault Rifle Energy Gun Small Laser Ballistic Gun Assault Rifle Impact Weapon Hammer Build | -11 -10 -10 ------- Run | Yrd Mat Min Slots Evolved . | . . . Power . | . . . Propulsion . | . . . Utility . | . . . Weapon . | . . . Parts Attached 17 | 9 1 7 Power 3 | 1 . 2 Engine 2 | 1 . 1 Core 1 | . . 1 Reactor . | . . . Propulsion 5 | 3 . 2 Treads 2 | 2 . . Leg 3 | 1 . 2 Wheel . | . . . Hover . | . . . Flight . | . . . Utility 4 | 2 . 2 Device 3 | 1 . 2 Storage 1 | 1 . . Processor . | . . . Hackware . | . . . Protection . | . . . Artifact . | . . . Weapon 5 | 3 1 1 Energy Gun 1 | 1 . . Energy Cannon . | . . . Ballistic Gun 3 | 2 . 1 Ballistic Cannon . | . . . Launcher . | . . . Special Weapon . | . . . Impact Weapon 1 | . 1 . Slashing Weapon . | . . . Piercing Weapon . | . . . Special Melee Weapon . | . . . Unidentified Prototypes 1 | . . 1 Parts Lost 3 | . 1 2 Power 1 | . . 1 Propulsion 1 | . . 1 Utility 1 | . 1 . Weapon . | . . . Highest Loss Streak 1 | . 1 1 To Critical Strikes . | . . . Average Slot Usage (%) 86 | . 100 83 Engine 4 | . 14 3 Core 8 | . . 10 Treads 15 | . 28 13 Leg 2 | . . 2 Device 11 | . 14 11 Storage 14 | . 14 14 Ballistic Gun 25 | . 18 27 Impact Weapon 2 | . 9 . Peak Build Rating 17 | 9 9 17 Average Rating 9 | 5 8 10 On Entrance 5 | . 9 6 Naked Turns . | . . . Heaviest Build 15 | 14 15 14 Greatest Support 40 | 40 40 40 Greatest Overweight (x) 3 | 3 . . Average Overweight (x) . | . . . Largest Inventory Capacity 8 | 8 8 8 Average Capacity 7 | 7 8 8 Most Carried 8 | 4 5 8 Average Carried 6 | 2 4 7 Final Capacity 8 | 8 8 8 Final Carried 8 | 3 5 8 Class Distribution -------------------- 100% | Mutant Dominant Class ---------------- Mutant | -10/Materials Mutant | -10/Mines Resources | -11 -10 -10 ----------- Run | Yrd Mat Min Matter Collected 716 | 346 . 370 Remotely . | . . . Salvage Created 432 | 111 . 321 Parts 33 | 11 . 22 Haulers Intercepted . | . . . Recyclers Shooed 4 | 1 . 3 Parts Field Recycled . | . . . Retrieved Matter . | . . . Parts Self-Destructed . | . . . Prevented . | . . . Kills | -11 -10 -10 ------- Run | Yrd Mat Min Combat Hostiles Destroyed 7 | . . 7 Guns 7 | . . 7 Classes Destroyed 5 | 2 . 3 Worker 2 | . . 2 Tunneler 4 | 3 . 1 Recycler 1 | 1 . . Grunt 5 | . . 5 Assembled 2 | . . 2 Best Kill Streak 4 | 4 . 3 Combat Bots Only 2 | . . 2 Max Kills in Single Turn 1 | 1 . 1 Gunslinging . | . . . Exploded . | . . . Melee . | . . . Uniques/NPCs Destroyed . | . . . Combat | -11 -10 -10 -------- Run | Yrd Mat Min Hostile Shots Fired 80 | . 15 65 Missed 20 | . 3 17 Damage Taken 766 | . 102 664 Core 258 | . 24 234 Absorbed by Shields . | . . . Core Remaining (%) 100 | 100 . . Volleys Fired 73 | 14 1 58 Largest 2 | 2 2 2 Hottest 40 | 40 40 40 Shots Fired 127 | 28 2 97 Gun 127 | 28 2 97 Cannon . | . . . Launcher . | . . . Special . | . . . Kinetic 127 | 28 2 97 Thermal . | . . . Explosive . | . . . Electromagnetic . | . . . Robot Hit Streak 10 | 8 10 9 Robot Miss Streak 5 | 5 . 3 Penetration Max . | . . . Secondary Targets 1 | . . 1 Max Gunslinging Chain 1 | . . 1 Shots Hit Robots 71 | 14 3 54 Core Hits 28 | 6 1 21 Critical Kills 1 | . . 1 Critical Parts Destroyed . | . . . Critical Strikes 1 | . . 1 Destroy 1 | . . 1 Melee Attacks 2 | . 2 . Impact 2 | . 2 . Slashing . | . . . Piercing . | . . . Sneak Attacks . | . . . Combat Hostiles . | . . . Follow-up Attacks . | . . . Damage Inflicted 786 | 163 45 578 Guns 758 | 163 20 575 Cannons . | . . . Explosions . | . . . Melee 25 | . 25 . Ramming 3 | . . 3 Kinetic 758 | 163 20 575 Thermal . | . . . Explosive . | . . . Electromagnetic . | . . . Impact 25 | . 25 . Slashing . | . . . Piercing . | . . . Highest Corruption . | . . . Average Corruption . | . . . Corruption Purged . | . . . Corruption Blocked . | . . . Overload Shots . | . . . Overflow Damage . | . . . Projectiles . | . . . Explosions . | . . . Melee . | . . . Knockbacks . | . . . Impact . | . . . Kinetic . | . . . Secondary . | . . . Self-Inflicted Damage . | . . . Shots . | . . . Rammed . | . . . Targets Rammed 2 | . . 2 Kicked 2 | . . 2 Crushed . | . . . Highest Temperature 24 | . . 24 Average Temperature 6 | . . 6 Received Heat Transfer 421 | . . 421 Siege Activations . | . . . Robots Corrupted . | . . . Combat Hostiles . | . . . Parts Fried . | . . . Impact Corruptions . | . . . Robots Melted . | . . . Combat Hostiles . | . . . Parts Melted . | . . . Heat Transferred . | . . . Parts Sabotaged . | . . . Parts Stolen . | . . . Parts Stripped . | . . . Power Chain Reactions . | . . . Alert | -11 -10 -10 ------- Run | Yrd Mat Min Peak Influence 85 | 20 74 85 Initial 24 | . 13 24 Average 37 | 7 36 43 Maximum Alert Level . | . . . Low Security (%) 100 | 100 100 100 Level 1 . | . . . Level 2 . | . . . Level 3 . | . . . Level 4 . | . . . Level 5 . | . . . High Security . | . . . Max Security . | . . . Squads Dispatched 1 | . 1 . Investigation . | . . . Extermination . | . . . Reinforcement 1 | . 1 . Assault . | . . . Garrison . | . . . Intercept . | . . . Searches Triggered . | . . . Construction Impeded . | . . . Haulers Reinforced . | . . . Active Scanning Responses . | . . . Cargo Convoy Interrupts . | . . . Stealth | -11 -10 -10 --------- Run | Yrd Mat Min Distress Signals 2 | . . 2 Communications Jammed . | . . . Distress Signals . | . . . Times Spotted 17 | . 6 11 Peak Tracking Total 9 | . 5 9 Tactical Retreats 3 | . 1 2 Traps | -11 -10 -10 ------- Run | Yrd Mat Min Traps Triggered . | . . . Indirectly . | . . . Trap Hack Attempts . | . . . Triggered . | . . . Disarmed . | . . . Reprogrammed . | . . . Reused . | . . . Traps Extracted . | . . . Installed . | . . . Triggered . | . . . Machines | -11 -10 -10 ---------- Run | Yrd Mat Min Machines Disabled 1 | . . 1 Max in Single Turn 1 | . . 1 Machines Repaired . | . . . Machines Dismantled . | . . . Machines Sabotaged . | . . . Overloaded Fab Kills . | . . . Hacking | -11 -10 -10 --------- Run | Yrd Mat Min Machines Accessed . | . . . Terminals . | . . . Fabricators . | . . . Repair Stations . | . . . Recycling Units . | . . . Scanalyzers . | . . . Garrison Access . | . . . Total Hacks . | . . . Successful . | . . . Failed . | . . . Catastrophic . | . . . Database Lockouts . | . . . Manual . | . . . Terminals . | . . . Fabricators . | . . . Repair Stations . | . . . Recycling Units . | . . . Scanalyzers . | . . . Garrison Access . | . . . Terminal Hacks . | . . . Fabricator Hacks . | . . . Repair Station Hacks . | . . . Recycling Unit Hacks . | . . . Scanalyzer . | . . . Garrison Access Hacks . | . . . Unauthorized Hacks . | . . . Terminals . | . . . Fabricators . | . . . Repair Stations . | . . . Recycling Units . | . . . Scanalyzers . | . . . Garrison Access . | . . . Data Cores Recovered . | . . . Used . | . . . Hacking Detections . | . . . Full Trace Events . | . . . Feedback Events . | . . . Feedback Blocked . | . . . Robot Schematics Acquired . | . . . Robots Built . | . . . Authchips . | . . . Time . | . . . Total Robot Build Rating . | . . . Part Schematics Acquired . | . . . Parts Built . | . . . Authchips . | . . . Time . | . . . Total Part Build Rating . | . . . Parts Repaired . | . . . Time . | . . . Parts Recycled . | . . . Recycled Matter . | . . . Retrieved Matter . | . . . Retrieved Components . | . . . Parts Scanalyzed . | . . . Part Schematics Acquired . | . . . Parts Damaged . | . . . Bothacking | -11 -10 -10 ------------ Run | Yrd Mat Min Used RIF Installer . | . . . Robots Hacked . | . . . Non-combat . | . . . Combat . | . . . Robot Hacks Applied . | . . . Relay Couplers Released . | . . . Fabnet Peak Effective % . | . . . Robots Rewired . | . . . Allies Hacked . | . . . Hacks Repelled . | . . . Allies | -11 -10 -10 -------- Run | Yrd Mat Min Total Allies . | . . . Largest Group . | . . . Highest-Rated Group . | . . . Highest-Rated Ally . | . . . Total Orders . | . . . Ally Attacks . | . . . Total Damage . | . . . Kills . | . . . Allies Corrupted . | . . . Allies Melted . | . . . Intel | -11 -10 -10 ------- Run | Yrd Mat Min Robot Analysis Total . | . . . Derelict Logs Recovered . | . . . Drone Launches . | . . . Drone Recoveries . | . . . Exploration | -11 -10 -10 ------------- Run | Yrd Mat Min Turns Passed 1175 | 169 179 827 Spaces Moved 438 | 74 105 259 Core 13 | 13 . . Treads 381 | 60 105 216 Legs 44 | 1 . 43 Wheels . | . . . Hover . | . . . Flight . | . . . Fastest Speed 50 | 50 160 120 Average Speed 154 | 152 160 153 Slowest Speed 200 | 200 160 160 Overloaded Moves . | . . . Propulsion Burnouts . | . . . Robots Hopped . | . . . Cave-ins Triggered . | . . . Exploration Rate (%) 22 | 5 16 46 Regions Visited 2 Branch Regions 1 Pre-discovered Areas . | . . . Known Exits Taken . | . . . Unknown Exits Taken 2 | 1 1 . Scrap Searched . | . . . Spaces Dug 1 | . 1 . Terrain Destroyed 1 | . 1 . Melee 1 | . 1 . Projectile . | . . . AOE . | . . . Terrain Rammed . | . . . Walls Destroyed . | . . . Machines Disabled . | . . . Actions | -11 -10 -10 --------- Run | Yrd Mat Min Total 810 | 102 110 598 Wait 261 | . . 261 Move 436 | 73 104 259 Hop . | . . . Pick Up 13 | 3 2 8 Fast Attach 10 | 9 . 1 Attach 2 | . . 2 Detach 1 | 1 . . Swap 5 | . 1 4 Drop 5 | 2 . 3 Fire 73 | 14 1 58 Melee 2 | . 2 . Ram . | . . . Kick 2 | . . 2 Crush . | . . . Escape Stasis . | . . . Rewire . | . . . Trap . | . . . Miscellaneous . | . . . Route ------- -11/Scrapyard -10/Materials -10/Mines History --------- Turn | Location | Event 16 | -11/Scrapyard | Discovered new exit (range 15) 170 | -11/Scrapyard | Entered Materials 298 | -10/Materials | Discovered new exit (range 16) 317 | -10/Materials | Build established: Mutant 349 | -10/Materials | Entered Mines 400 | -10/Mines | Core integrity fell below 50% 529 | -10/Mines | Assembled infested the area 967 | -10/Mines | Found a damaged Exp. Sensor Array with a note attached 970 | -10/Mines | Found Prototype Device 971 | -10/Mines | Identified Exp. Sensor Array 1068 | -10/Mines | Core integrity fell below 20% 1176 | -10/Mines | Destroyed by G-47 Trooper with Particle Gun Last Messages --------------- Acquired Prototype Device. Identified Exp. Sensor Array. Acquired 26 matter. Lgt. Nuclear Core destroyed. G-47 Trooper destroyed. Switching to secondary target: G-34 Mercenary. G-34 Mercenary destroyed. Acquired Aluminum Leg. Dropped Lgt. Treads. Acquired 45 matter. Acquired Aluminum Leg. Acquired 44 matter. Acquired 10 matter. K-01 Serf collects debris. Dropped Imp. Terrain Scanner. Acquired Structural Scanner. K-01 Serf collects debris. Kicked T-07 Excavator. Kicked T-07 Excavator out of the way. G-34 Mercenary destroyed. Map ----- +----------------------------------------------------+ | | | | | | | | | | | | | | | | | | | | | | | | | | | | | | | | | | | ????????????????????????????????????????? | | ????????????????????????????????????????? | | ????????????????????????????????????????? | | ????????????????????????####????????????? | | ???????????????????????## ##???????????? | | ???????????????????????# ##??????????? | | ??????????????????????## ##?????????? | | ???????????????###???## #?????????? | | ???????????????#@###?# #?????????? | | ???????????????##%%#?# | #####?????? | | ????????????????#[g#?# %! #?????? | | ????????????????# #?# !### #?????# | | ????????????????# ### ##?#### #????## | | ????????????????# ## #?????# #???## | | ????????????????# #?????# ##### | | ????????????????# #?????# [ | | ????????????????# ##????# ! | | ????????????????##? #????######## = | | ?????????????????## #???????????#[# | | ??????????????????## ##???????????### | | ???????????????????# ##??????????????? | | ???????????????????## #???????????????? | | ????????????????????## #???????????????? | | ?????????????????????# #???????????????? | | ?????????????????????# #???????????????? | | ?????????????????????# #???????????????? | | ?????????????????????# #???????????????? | | ?????????????????????# #???????????????? | | ?????????????????????# #???????????????? | | ?????????????????????# #???????????????? | | ?????????????????????# #???????????????? | | ?????????????????????# ????????????????? | | ?????????????????????? ????????????????? | +----------------------------------------------------+ Best States ------------- Heat Dissipation 25 Energy Generation 14 Energy Capacity 250 Matter Stores 300 Matter Capacity 300 Sight Range 16 Robot Scan Range 20 Terrain Scan Range 16 Terrain Scan Density 10 Evasion (%) 55 Recoil Reduction 2 Item Schematics ----------------- None Robot Schematics ------------------ None Fabricated ------------ Nothing Alien Tech Used ----------------- None Achievements -------------- None Challenges ------------ None Game ------ Seed MetaConstructThruster Manual? 0 Play Time 00:10:54 Cumulative 12.4 hours Start 2024.08.29 @ 09:01:08 End 2024.08.29 @ 09:09:38 Sessions 1 Manual Loads 0 Difficulty Rogue Special Mode None Game No. 19 Rogue 19 Adventurer 0 Explorer 0 Win Type - Total 0 Types 0/0/0/0/0/0/0/0/0 Lore% 10 Gallery% 17 Achievement% 17 Wizard Run 0 Options --------- Layout 0 ASCII 0 Keyboard 0 Movement Numpad Keybinds 0 Fullscreen 1 Font 18/Cog Map View 76x50 Zoom Use 0% Tactical HUD 0 Map Filters NONE Filters NONE Steam 1 RUN: 23e2a124-09d4-4da8-9706-68cb5ba19212